Cogmind - Beta 15 @@@ ROGUE MODE // 2025.05.24 @ 19:59:24 Player: amhumam Result: Destroyed by S-43 Plague with Heavy Machine Gun Performance ------------- Evolutions (8) 4000 Regions Visited (22) 4400 Robots Destroyed (63) 315 Value Destroyed (2891) 2891 Prototype IDs (40) 800 Alien Tech Used (1) 200 Bonus (5188) 5188 TOTAL SCORE: 17794 Bonus ------- High Alert Combat Kills 106 Follower Combat Kills 1926 Network Hubs Disabled 200 Registered with UFD 300 Met Optimus in HQ 500 Met Imprinter 300 Built Enhanced Grunts 300 Met R17 at Research 2000 Friendly Fire -444 Cogmind --------- Core Integrity 0/1450 Matter 155/300 Energy 97/100 System Corruption 24% Temperature Cool (3) Movement Flying (27) Location -2/Research Parts ------- > --- POWER (2) -------- (None) > --- PROPULSION (9) --- Cooled Q-thruster > --- UTILITY (10) ----- Advanced Signal Interpreter > --- WEAPON (3) ------- (None) > --- INVENTORY (5) ---- Medium Storage Unit Advanced Sensor Array Enhanced Quantum Rifle KE Penetrator Railgun Peak State ------------ > --- POWER ------------ Light Antimatter Reactor Light Antimatter Reactor > --- PROPULSION ------- Xenon Bombardment Thruster Xenon Bombardment Thruster Xenon Bombardment Thruster Xenon Bombardment Thruster Xenon Bombardment Thruster Xenon Bombardment Thruster Cooled Q-thruster > --- UTILITY ---------- Advanced Heat Sink Advanced Heat Sink Medium Storage Unit Advanced Weight Redist. System Advanced Sensor Array Advanced Signal Interpreter Advanced Terrain Scan Processor Melee Analysis Suite Improved Cloaking Device Mini Drone Bay > --- WEAPON ----------- Gamma Rifle Enhanced Quantum Rifle Enhanced Coil Gun > --- INVENTORY -------- Advanced Sensor Array Wave Gun Enhanced Quantum Rifle Enhanced Quantum Rifle Neutron Cannon Long-range Phase Cannon KE Penetrator Railgun Railgun Force Lance [Rating: 123] Favorites ----------- Power Meta Core Engine Makeshift Power Source Power Core Meta Core Reactor Light Antimatter Reactor Propulsion Xenon Bombardment Thruster Treads Light Treads Leg Flexi-carbon Leg Wheel Overtuned Huge Scrapsphere Hover Unit Improved Antigrav System Flight Unit Xenon Bombardment Thruster Utility Melee Analysis Suite Device Advanced Heat Sink Storage Small Storage Unit Processor Melee Analysis Suite Hackware Hacking Suite Protection Improved Power Shielding Weapon Barrage Gun Energy Gun Medium Laser Energy Cannon Subdweller Beam Cannon Ballistic Gun Barrage Gun Ballistic Cannon Battle Cannon Launcher Mini Grenade Launcher Impact Weapon Gravity Flail Slashing Weapon Phasing Sabre Piercing Weapon Force Lance Build | -11 -10 -10 -9 -9 -6 -6 -6 -6 -6 -6 -6 -5 -5 -5 -5 -4 -4 -4 -4 -4 -3 -2 ------- Run | Yrd Mat Sub Rec Scr Fac Was Fac Low Low Zio Dee Pro Fac Upp Upp Fac Ext Cet Arc Hub Res Res Slots Evolved 16 | . . . . . 8 . . . . . . . 2 . . 2 . . . . 2 2 Power 1 | . . . . . . . . . . . . . . . . 1 . . . . . . Propulsion 7 | . . . . . 4 . . . . . . . 1 . . . . . . . . 2 Utility 8 | . . . . . 4 . . . . . . . 1 . . 1 . . . . 2 . Weapon . | . . . . . . . . . . . . . . . . . . . . . . . Parts Attached 169 | 7 2 9 2 1 18 2 3 1 . 2 1 3 6 . . 10 39 2 1 10 27 23 Power 14 | 2 . 1 . . 1 . . . . . . . . . . . 3 . . 1 5 1 Engine 4 | 2 . 1 . . . . . . . . . . . . . . . . . . 1 . Core 5 | . . . . . 1 . . . . . . . . . . . 2 . . 1 . 1 Reactor 5 | . . . . . . . . . . . . . . . . . 1 . . . 4 . Propulsion 58 | 2 . 2 . . 6 1 1 . . 1 . . 3 . . 1 21 . . 1 8 11 Treads 4 | 2 . . . . . . . . . . . . . . . . 2 . . . . . Leg 11 | . . . . . . . . . . . . . . . . . 10 . . 1 . . Wheel 5 | . . . . . . . . . . . . . 1 . . . 3 . . . 1 . Hover 12 | . . . . . . . . . . . . . . . . . 5 . . . . 7 Flight 26 | . . 2 . . 6 1 1 . . 1 . . 2 . . 1 1 . . . 7 4 Utility 58 | 1 2 . 1 1 8 . 2 1 . 1 . 1 2 . . 7 13 . . 3 11 4 Device 36 | . 2 . . 1 5 . 1 . . 1 . . . . . 5 8 . . 2 7 4 Storage 5 | 1 . . . . . . . 1 . . . . 1 . . . 1 . . . 1 . Processor 10 | . . . 1 . 2 . . . . . . 1 1 . . 2 . . . 1 2 . Hackware 2 | . . . . . 1 . . . . . . . . . . . . . . . 1 . Protection 5 | . . . . . . . 1 . . . . . . . . . 4 . . . . . Artifact . | . . . . . . . . . . . . . . . . . . . . . . . Weapon 39 | 2 . 6 1 . 3 1 . . . . 1 2 1 . . 2 2 2 1 5 3 7 Energy Gun 10 | 1 . . . . . . . . . . . 1 1 . . . . . 1 2 1 3 Energy Cannon 5 | . . 1 . . . . . . . . . . . . . . . 1 . 2 1 . Ballistic Gun 8 | 1 . 2 . . . . . . . . . 1 . . . . 1 . . 1 . 2 Ballistic Cannon 2 | . . . 1 . . . . . . . . . . . . 1 . . . . . . Launcher 7 | . . 2 . . 2 . . . . . 1 . . . . . . 1 . . . 1 Special Weapon . | . . . . . . . . . . . . . . . . . . . . . . . Impact Weapon 3 | . . . . . 1 1 . . . . . . . . . 1 . . . . . . Slashing Weapon 2 | . . 1 . . . . . . . . . . . . . . 1 . . . . . Piercing Weapon 2 | . . . . . . . . . . . . . . . . . . . . . 1 1 Special Melee Weapon . | . . . . . . . . . . . . . . . . . . . . . . . Unidentified Prototypes 14 | . . . . . 1 1 1 . . . . . . . . 2 . . . 3 2 4 Parts Lost 100 | . . 6 . . 6 . . . 1 5 2 2 . 5 . 2 32 1 . 3 4 31 Power 8 | . . . . . . . . . . . . . . . . . 2 . . 2 1 3 Propulsion 45 | . . 2 . . 3 . . . 1 3 1 1 . 2 . 2 13 . . . . 17 Utility 34 | . . 1 . . 3 . . . . 1 . 1 . 3 . . 12 . . . 3 10 Weapon 13 | . . 3 . . . . . . . 1 1 . . . . . 5 1 . 1 . 1 Highest Loss Streak 15 | . . 3 . . 4 . . . 1 5 2 2 . 4 . 2 14 1 . 2 3 15 To Critical Strikes 1 | . . 1 . . . . . . . . . . . . . . . . . . . . Average Backups 7 | 1 4 7 7 7 7 7 7 8 10 9 4 4 4 4 5 4 4 11 12 13 12 7 Power . | . 1 1 1 . . . . . . . 1 1 1 . . . . 1 1 1 . . Propulsion . | . 1 1 . . . . . 1 1 . . . . . . . . . 1 1 5 . Utility 1 | . . . . 1 1 4 4 3 4 3 . . . . . . . 3 3 4 1 1 Weapon 4 | . 1 4 5 4 4 3 3 3 4 4 2 1 2 3 4 4 4 5 5 4 5 5 Tool/Special . | . . . . . . . . . . . . . . . . . . . . . . . Unused Backups 31 | . . 2 1 7 1 1 . 1 . 5 . . . 2 . 3 . . . 2 3 3 Power 3 | . . . . 2 . . . . . . . . . 1 . . . . . . . . Propulsion 2 | . . 1 . . . . . . . . . . . . . . . . . . 1 . Utility 9 | . . . . 1 . . . 1 . 3 . . . . . . . . . 1 1 2 Weapon 16 | . . 1 1 4 1 1 . . . 2 . . . 1 . 3 . . . 1 . 1 Tool/Special 1 | . . . . . . . . . . . . . . . . . . . . . 1 . Average Slot Usage (%) 78 | . 98 81 92 100 59 82 91 94 92 91 63 64 55 56 40 54 69 67 69 71 85 71 Engine 5 | . 14 14 14 14 3 . . . . . . . . . . . . . . . 2 . Core 2 | . . . . . 1 5 5 5 5 5 5 5 5 5 5 4 6 5 5 4 . . Treads 3 | . 28 19 . . . . . . . . . . . . . . 2 . . . . . Leg 1 | . . . . . . . . . . . . . . . . . 9 5 5 3 . . Wheel 2 | . . . . . . . . . . . . . 1 5 5 3 3 15 15 15 7 . Flight 16 | . . 2 28 28 19 32 36 38 37 36 18 15 11 13 10 11 2 . . . 15 23 Device 10 | . 12 2 . 9 9 11 11 11 11 11 11 11 10 6 5 8 12 15 15 17 20 16 Storage 6 | . 14 14 14 14 5 5 5 5 5 4 . . . . . . . 5 5 5 4 2 Processor 8 | . . . 7 4 7 11 11 11 11 11 11 14 13 13 10 15 12 5 5 7 12 9 Hackware 1 | . . . . . . 5 5 5 5 5 5 5 5 1 . . . . . . 1 1 Protection 2 | . . . . . . . 4 5 5 5 5 5 5 5 5 4 6 5 5 2 1 . Energy Gun 2 | . 14 6 . . . . . . . . . . . . . . 1 . 4 7 7 3 Energy Cannon 1 | . . 7 . . . . . . . . . . . . . . . 4 5 3 2 . Ballistic Gun 5 | . 14 13 14 14 3 . . . . . . . . 1 . . 2 . . 1 . 2 Ballistic Cannon 3 | . . . 13 14 3 . . . . . . . . . . 1 . . . . . . Impact Weapon 1 | . . . . . . 5 5 5 5 5 5 4 4 3 . 2 2 . . . . . Peak Build Rating 123 | 6 7 16 16 19 61 70 80 82 82 81 69 68 69 73 38 94 120 112 110 118 120 123 Average Rating 55 | 4 6 11 15 17 34 68 78 81 81 79 65 64 60 56 38 72 92 108 109 110 105 92 On Entrance 60 | . 6 7 16 16 19 61 70 80 82 77 68 63 58 69 38 38 83 110 106 110 106 102 Naked Turns . | . . . . . . . . . . . . . . . . . . . . . . . Heaviest Build 94 | 14 15 20 15 16 17 17 19 24 24 24 14 13 20 18 9 23 82 94 86 88 94 57 Greatest Support 125 | 40 40 40 8 8 22 22 33 24 27 29 21 15 21 21 16 24 125 60 60 60 76 72 Greatest Overweight (x) 6 | 4 . 6 1 1 5 . . . . . . . 1 1 . 1 3 1 1 1 1 1 Average Overweight (x) . | . . . 1 1 . . . . . . . . . . . . . 1 1 . . . Largest Inventory Capacity 15 | 8 8 8 8 8 8 8 8 10 10 10 5 5 5 5 5 5 15 15 15 15 15 10 Average Capacity 8 | 7 8 8 8 8 8 8 8 8 10 9 5 5 5 5 5 5 5 15 15 15 12 8 Most Carried 15 | 2 8 8 8 8 8 8 8 10 10 10 5 5 5 5 5 5 11 13 14 15 15 10 Average Carried 7 | 1 4 7 7 7 7 7 7 8 10 9 4 4 4 4 5 4 4 12 13 14 12 7 Final Capacity 15 | 8 8 8 8 8 8 8 8 10 10 5 5 5 5 5 5 5 15 15 15 15 10 5 Final Carried 14 | 2 8 6 8 8 8 8 8 10 10 5 4 5 5 5 5 5 11 13 14 13 10 5 Class Distribution -------------------- 46% | Mutant 13% | Scavenger-Scout 11% | Scavenger-Scrapper 8% | Scout 5% | Scavenger-Sprinter 3% | Derelict-Mutant Dominant Class ---------------- Mutant | -10/Materials Mutant | -10/Subcaves Mutant | -9/Recycling Mutant | -9/Scraptown Derelict-Mutant | -6/Factory Scavenger-Scout | -6/Waste Scavenger-Scout | -6/Factory Scavenger-Scout | -6/Lower Caves Scavenger-Scout | -6/Lower Caves Scavenger-Scout | -6/Zion Scout | -6/Deep Caves Scout | -5/Proximity Caves Assassin | -5/Factory Mutant | -5/Upper Caves Mutant | -5/Upper Caves Mutant | -4/Factory Mutant | -4/Extension Scavenger-Scrapper | -4/Cetus Scavenger-Scrapper | -4/Archives Scavenger-Scrapper | -4/Hub_04(d) Scavenger-Scrapper | -3/Research Scavenger-Sprinter | -2/Research Resources | -11 -10 -10 -9 -9 -6 -6 -6 -6 -6 -6 -6 -5 -5 -5 -5 -4 -4 -4 -4 -4 -3 -2 ----------- Run | Yrd Mat Sub Rec Scr Fac Was Fac Low Low Zio Dee Pro Fac Upp Upp Fac Ext Cet Arc Hub Res Res Matter Collected 2829 | 207 158 140 148 10 41 319 64 38 . 20 . 22 80 57 . . 794 76 74 126 345 110 Remotely 208 | . . . . . . . . . . . . . . . . . 118 . . . 90 . Salvage Created 2611 | . 274 174 . . 111 . . . . 19 . 22 44 . . . 375 265 94 468 635 130 Parts 113 | . 14 16 . . 8 . . . . 3 . 1 1 . . . 14 8 2 12 27 7 Haulers Intercepted 2 | . . . . . . . . . . . . . . . . . . . . 1 1 . Recyclers Shooed 1 | . . . . . . . . . . . . . . . . . . . . . 1 . Parts Field Recycled . | . . . . . . . . . . . . . . . . . . . . . . . Retrieved Matter . | . . . . . . . . . . . . . . . . . . . . . . . Parts Self-Destructed 6 | . . 5 . . . . . . . . . 1 . . . . . . . . . . Prevented . | . . . . . . . . . . . . . . . . . . . . . . . Kills | -11 -10 -10 -9 -9 -6 -6 -6 -6 -6 -6 -6 -5 -5 -5 -5 -4 -4 -4 -4 -4 -3 -2 ------- Run | Yrd Mat Sub Rec Scr Fac Was Fac Low Low Zio Dee Pro Fac Upp Upp Fac Ext Cet Arc Hub Res Res Combat Hostiles Destroyed 57 | . 10 7 . . 8 . . . . 1 3 1 2 . . . 6 5 1 3 8 2 Melee 2 | . . . . . . . . . . 1 . . . . . . 1 . . . . . Guns 26 | . 10 3 . . 2 . . . . . . 1 1 . . . 3 . . 3 2 1 Cannons 9 | . . . . . 2 . . . . . . . . . . . . . 1 . 6 . AOE 16 | . . 4 . . 4 . . . . . 3 . . . . . 1 3 . . . 1 Classes Destroyed 13 | . 2 1 . . . . . . . . 2 . . . . . 2 1 . 4 1 . Worker 1 | . . . . . . . . . . . . . . . . . . . . 1 . . Builder 1 | . . . . . . . . . . . . . . . . . . . . . 1 . Hauler 2 | . . . . . . . . . . . . . . . . . . . . 1 1 . Recycler 2 | . . . . . . . . . . . . . . . . . . . . 1 1 . Operator 1 | . . . . . . . . . . . . . . . . . . . . . . 1 Watcher 2 | . . . . . . . . . . . . . . . . . . 2 . . . . Swarmer 24 | . 6 1 . . 8 . . . . . . 1 2 . . . . . . . 5 1 Grunt 10 | . 4 . . . . . . . . . . . . . . . 2 . . 2 2 . Sentry 5 | . . . . . . . . . . . . . . . . . 3 . 1 . 1 . Hunter 1 | . . . . . . . . . . . . . . . . . . . . 1 . . Programmer 2 | . . . . . . . . . . . . . . . . . 1 . . . . 1 Cetus Guard 5 | . . . . . . . . . . . . . . . . . . 5 . . . . Subdweller 6 | . . 6 . . . . . . . . . . . . . . . . . . . . Z-Technician 5 | . . . . . . . . . . . 5 . . . . . . . . . . . Assembled 3 | . . . . . . . . . . . 3 . . . . . . . . . . . Best Kill Streak 8 | . 5 5 . . 4 . . . . 1 8 1 2 . . . 3 4 1 2 4 1 Combat Bots Only 5 | . 5 5 . . 4 . . . . 1 3 1 2 . . . 3 3 1 1 3 1 Max Kills in Single Turn 8 | . 1 1 . . 2 . . . . 1 8 1 1 . . . 1 2 1 1 1 1 Gunslinging . | . . . . . . . . . . . . . . . . . . . . . . . Exploded 3 | . . 1 . . 2 . . . . . 3 . . . . . 1 2 . . . 1 Melee 1 | . . . . . . . . . . 1 . . . . . . 1 . . . . . Uniques/NPCs Destroyed 1 | . . . . . . . . . . 1 . . . . . . . . . . . . Imprinter (-6/Zion) Combat | -11 -10 -10 -9 -9 -6 -6 -6 -6 -6 -6 -6 -5 -5 -5 -5 -4 -4 -4 -4 -4 -3 -2 -------- Run | Yrd Mat Sub Rec Scr Fac Was Fac Low Low Zio Dee Pro Fac Upp Upp Fac Ext Cet Arc Hub Res Res Hostile Shots Fired 858 | . 49 28 . . 66 . 1 . 4 29 4 5 13 . . 14 221 34 4 44 67 275 Missed 344 | . 17 6 . . 30 . 1 . . 21 3 2 4 . . 5 78 13 2 16 22 124 Hits 514 | . 32 22 . . 36 . . . 4 8 1 3 9 . . 9 143 21 2 28 45 151 Melee 3 | . . . . . . . . . . . . . . . . . 3 . . . . . Projectile 511 | . 32 22 . . 36 . . . 4 8 1 3 9 . . 9 140 21 2 28 45 151 AOE 3 | . . . . . . . . . . 1 . . . . . . . . . 2 . . Critical Strikes 35 | . . 2 . . . . . . . . . . . . . . 8 7 . 1 1 16 Part Disruptions 3 | . . . . . . . . . . . . . . . . 1 . . . . . 2 Damage Taken 12475 | . 320 602 . . 506 . . . 71 158 400 137 141 369 . 192 3795 390 56 731 972 3635 Core 3420 | . 70 116 . . 108 . . . . 10 318 27 90 100 . 21 937 93 . 56 . 1474 Absorbed by Shields 224 | . . . . . . . . . . . . . . . . . 5 176 . . . 43 Redirected to Shielding 74 | . . . . . . . . . 12 . . . 9 . . . 53 . . . . . Regen/Repaired (Parts) 177 | . . . . . . 109 . . . . . . . . . . 8 . 10 30 20 . Core Remaining (%) 59 | 100 . . . 25 . . . . . . . 45 . . 81 . . . . 3 100 . Volleys Fired 189 | . 25 31 . . 14 . . . . . 1 6 1 6 . 2 21 13 9 18 33 9 Largest 3 | . 2 2 . . 2 . . . . . 1 2 2 1 . 1 2 2 2 3 3 3 Hottest 246 | . 70 108 . . 61 . . . . . 30 115 90 30 . 47 132 159 173 191 246 165 Shots Fired 346 | . 50 48 . . 25 . . . . . 1 8 2 6 . 2 33 19 13 39 80 20 Gun 233 | . 50 21 . . 12 . . . . . . 8 2 6 . . 25 . 4 32 54 19 Cannon 89 | . . 13 . . 11 . . . . . . . . . . 2 8 13 9 7 26 . Launcher 24 | . . 14 . . 2 . . . . . 1 . . . . . . 6 . . . 1 Special . | . . . . . . . . . . . . . . . . . . . . . . . Kinetic 123 | . 25 17 . . 23 . . . . . . 6 1 6 . 2 28 . . 7 . 8 Thermal 142 | . 25 17 . . . . . . . . . 2 . . . . 5 . 4 25 58 6 Explosive 24 | . . 14 . . 2 . . . . . 1 . . . . . . 6 . . . 1 Electromagnetic 57 | . . . . . . . . . . . . . 1 . . . . 13 9 7 22 5 Robot Hit Streak 19 | . 8 5 . . 7 . . . . . . 3 4 . . . 11 9 6 8 7 19 Robot Miss Streak 4 | . 4 3 . . 3 . . . . . . . . . . . 3 1 3 2 3 1 Penetration Max . | . . . . . . . . . . . . . . . . . . . . . . . Secondary Targets 3 | . 1 . . . . . . . . . . . . . . . . . . 2 . . Max Gunslinging Chain 1 | . 1 . . . . . . . . . . . . . . . . . . 1 . . Shots Hit Robots 233 | . 30 20 . . 14 . . . . 3 . 3 3 . . . 41 16 9 25 50 19 Core Hits 127 | . 16 12 . . 13 . . . . . 3 1 1 . . . 10 24 6 11 20 10 Critical Kills 1 | . . . . . . . . . . . . . . . . . 1 . . . . . Critical Parts Destroyed 4 | . . . . . . . . . . . . . 1 . . . 3 . . . . . Critical Strikes 13 | . 1 1 . . . . . . . . . 1 1 . . . 6 . . 1 1 1 Burn 5 | . 1 1 . . . . . . . . . 1 . . . . . . . 1 1 . Blast 1 | . . . . . . . . . . . . . . . . . 1 . . . . . Smash 6 | . . . . . . . . . . . . . 1 . . . 5 . . . . . Impale 1 | . . . . . . . . . . . . . . . . . . . . . . 1 Melee Attacks 104 | . . 2 . . 6 . 8 7 6 5 2 8 6 8 . 6 24 . . . 7 9 Impact 80 | . . . . . 4 . 8 7 6 5 2 8 6 8 . 6 20 . . . . . Slashing 8 | . . 2 . . 2 . . . . . . . . . . . 4 . . . . . Piercing 16 | . . . . . . . . . . . . . . . . . . . . . 7 9 Sneak Attacks 2 | . . . . . . . . . . 1 . . . . . . . . . . 1 . Combat Hostiles . | . . . . . . . . . . . . . . . . . . . . . . . Follow-up Attacks . | . . . . . . . . . . . . . . . . . . . . . . . Damage Inflicted 11965 | . 401 746 . . 543 . . . . 305 3250 59 143 . . . 1426 1339 247 652 1749 1105 Guns 3349 | . 401 181 . . 128 . . . . . . 59 23 . . . 495 . 54 493 925 590 Cannons 1701 | . . 28 . . 102 . . . . . . . . . . . 202 299 193 159 718 . Explosions 5501 | . . 537 . . 313 . . . . . 3250 . . . . . . 1040 . . . 361 Melee 1312 | . . . . . . . . . . 305 . . 120 . . . 729 . . . 106 52 Ramming 102 | . . . . . . . . . . . . . . . . . . . . . . 102 Kinetic 1513 | . 199 144 . . 230 . . . . . . 23 23 . . . 622 . . 67 . 205 Thermal 5552 | . 202 65 . . . . . . . . 3250 36 . . . . 75 . 54 426 1204 240 Explosive 2251 | . . 537 . . 313 . . . . . . . . . . . . 1040 . . . 361 Electromagnetic 1235 | . . . . . . . . . . . . . . . . . . 299 193 159 439 145 Impact 1029 | . . . . . . . . . . 305 . . 120 . . . 604 . . . . . Slashing 125 | . . . . . . . . . . . . . . . . . 125 . . . . . Piercing 158 | . . . . . . . . . . . . . . . . . . . . . 106 52 Highest Corruption 24 | . . . . . 3 3 3 3 3 3 . 8 . 10 10 1 7 7 7 7 1 24 Average Corruption 5 | . . . . . 2 3 3 3 3 3 . 8 . 8 10 1 5 7 7 7 1 13 Corruption Purged 1 | . . . . . . . . . . . . . . . . . . . . . 1 . Corruption Blocked . | . . . . . . . . . . . . . . . . . . . . . . . Effects 112 | . . . . . 10 4 3 6 4 1 . 1 . 6 . . 26 8 5 11 4 23 Message Errors 22 | . . . . . 1 . . 2 2 1 . . . 2 . . 7 2 . 3 . 2 Matter Fused 31 | . . . . . 2 1 3 2 . . . 1 . 3 . . 7 2 1 3 . 6 Heat Flow Errors 14 | . . . . . 2 . . . 1 . . . . . . . 4 1 1 2 . 3 Energy Discharges 13 | . . . . . 1 2 . 1 . . . . . 1 . . 4 . 2 . 1 1 Data Loss (minor) 13 | . . . . . 1 . . 1 1 . . . . . . . 3 2 . 1 1 3 Data Loss (major) 2 | . . . . . . 1 . . . . . . . . . . . 1 . . . . Misfires 2 | . . . . . 1 . . . . . . . . . . . . . . . 1 . Alerts 3 | . . . . . 1 . . . . . . . . . . . 1 . . 1 . . Misdirections 8 | . . . . . . . . . . . . . . . . . . . . . . 8 Weapon Failures 4 | . . . . . 1 . . . . . . . . . . . . . 1 1 1 . Overload Shots . | . . . . . . . . . . . . . . . . . . . . . . . Overflow Damage 1113 | . . 1 . . 15 . . . . 195 555 . 61 . . . 193 . . 33 . 60 Projectiles 43 | . . . . . 10 . . . . . . . . . . . . . . 33 . . Explosions 577 | . . 1 . . 5 . . . . . 555 . . . . . . . . . . 16 Melee 493 | . . . . . . . . . . 195 . . 61 . . . 193 . . . . 44 Knockbacks 7 | . . . . . 2 . . . . 2 . . 1 . . . 2 . . . . . Impact 5 | . . . . . . . . . . 2 . . 1 . . . 2 . . . . . Kinetic 2 | . . . . . 2 . . . . . . . . . . . . . . . . . Secondary . | . . . . . . . . . . . . . . . . . . . . . . . Self-Inflicted Damage 630 | . . 72 . . . . . . . . 390 . . . . . . . . . . 168 Shots 10 | . . 8 . . . . . . . . 1 . . . . . . . . . . 1 Rammed 1 | . . . . . . . . . . . . . . . . . . . . . . 1 Targets Rammed 1 | . . . . . . . . . . . . . . . . . . . . . . 1 Kicked . | . . . . . . . . . . . . . . . . . . . . . . . Crushed . | . . . . . . . . . . . . . . . . . . . . . . . Highest Temperature 296 | . 9 56 . . 210 . 82 . 128 17 . 83 20 . . . 296 68 60 220 200 251 Average Temperature 63 | . 3 21 . . 45 . 40 . 45 9 . 30 15 . . . 108 38 30 66 71 77 Received Heat Transfer 1677 | . 81 78 . . 21 . . . 9 32 . . . . . 18 1218 4 . 45 117 54 Effects 3 | . . . . . . . . . . . . . . . . . 3 . . . . . Energy Bleed 1 | . . . . . . . . . . . . . . . . . 1 . . . . . Interference 2 | . . . . . . . . . . . . . . . . . 2 . . . . . Siege Activations . | . . . . . . . . . . . . . . . . . . . . . . . Martial Activations . | . . . . . . . . . . . . . . . . . . . . . . . Shielding Activations . | . . . . . . . . . . . . . . . . . . . . . . . Robots Disrupted 3 | . . . . . . . . . . . . . . . . . . 1 1 . 1 . Combat Hostiles 2 | . . . . . . . . . . . . . . . . . . 1 1 . . . Robots Corrupted 5 | . . . . . . . . . . . . . 1 . . . 1 2 . . 1 . Combat Hostiles 4 | . . . . . . . . . . . . . 1 . . . 1 2 . . . . Parts Fried 10 | . . . . . . . . . . . . . . . . . 1 1 . 2 3 3 Impact Corruptions 15 | . . . . . . . . . . 7 . . 2 . . . 6 . . . . . Robots Melted . | . . . . . . . . . . . . . . . . . . . . . . . Combat Hostiles . | . . . . . . . . . . . . . . . . . . . . . . . Parts Melted 6 | . . . . . . . . . . . . 1 . . . . 1 . . 3 . 1 Heat Transferred 3344 | . 666 222 . . . . . . . . . 200 . . . . 200 . 111 857 866 222 Parts Sabotaged . | . . . . . . . . . . . . . . . . . . . . . . . Parts Stolen . | . . . . . . . . . . . . . . . . . . . . . . . Parts Stripped . | . . . . . . . . . . . . . . . . . . . . . . . Power Chain Reactions . | . . . . . . . . . . . . . . . . . . . . . . . Alert | -11 -10 -10 -9 -9 -6 -6 -6 -6 -6 -6 -6 -5 -5 -5 -5 -4 -4 -4 -4 -4 -3 -2 ------- Run | Yrd Mat Sub Rec Scr Fac Was Fac Low Low Zio Dee Pro Fac Upp Upp Fac Ext Cet Arc Hub Res Res Maximum Alert Level 2 | . . . . . . . 1 . . . . . 2 . . . 1 1 1 2 2 1 Low Security (%) 75 | 100 100 . 100 . 100 100 92 . . . . . 10 . . 100 99 33 35 52 3 96 Level 1 13 | . . . . . . . 7 . . . . . 58 . . . . 66 64 27 29 3 Level 2 10 | . . . . . . . . . . . . . 30 . . . . . . 19 66 . Level 3 . | . . . . . . . . . . . . . . . . . . . . . . . Level 4 . | . . . . . . . . . . . . . . . . . . . . . . . Level 5 . | . . . . . . . . . . . . . . . . . . . . . . . High Security . | . . . . . . . . . . . . . . . . . . . . . . . Max Security . | . . . . . . . . . . . . . . . . . . . . . . . Peak Influence 664 | . 163 . 45 . 178 52 214 . . . . . 607 . . 21 201 335 247 436 664 223 Initial 602 | . . . 12 . . 52 . . . . . . 602 . . 10 1 . 110 68 202 161 Average 143 | . 74 . 10 . 69 22 61 . . . . . 365 . . 2 76 239 201 220 485 77 Influence Increases 6245 | . 243 65 139 . 400 . 531 . 45 . . 35 980 . . 61 979 425 177 528 903 734 Destroy 0b10 Robot/C 2100 | . 200 20 . . 160 . 260 . . . . 20 140 . . . 520 160 80 140 360 40 Destroy 0b10 Robot/NC 105 | . . . . . . . 20 . . . . . . . . . 10 10 . 35 25 5 Destroy Leader 288 | . 30 . . . 20 . 50 . . . . . 20 . . . 62 . . 24 62 20 Allied During Kill 905 | . . . . . . . 35 . . . . . 33 . . . 162 139 80 199 257 . Successful Hack 365 | . 12 . 19 . 30 . 86 . . . . . 6 . . 17 45 6 . 5 52 87 Select Force Hacks 120 | . . . 120 . . . . . . . . . . . . . . . . . . . Disable Machine 165 | . . . . . 30 . . . . . . . 30 . . . . . 15 45 45 . Destroy Structure 412 | . 1 . . . 10 . 20 . . . . . 16 . . 14 60 110 2 80 42 57 Advance Influence 600 | . . . . . . . . . . . . . 600 . . . . . . . . . Partial Spotted 105 | . . . . . 15 . 15 . . . . . 15 . . 15 15 . . . . 30 Lose Combat Pursuer 1080 | . . 45 . . 135 . 45 . 45 . . 15 120 . . 15 105 . . . 60 495 Influence Decreases 6072 | . 138 145 164 . 251 149 327 204 40 5 . 30 579 371 18 75 982 150 255 339 1002 848 Entered New Map 1018 | . . 51 13 . . 97 . 77 . 5 . . 3 151 8 7 2 . 165 129 184 126 Time Decay 2565 | . 138 84 151 . 201 52 74 127 35 . . 30 206 170 10 62 351 120 70 120 318 246 Lost Part 706 | . . 10 . . 50 . . . 5 . . . . 50 . 6 199 10 . 30 40 306 Lost Ally 774 | . . . . . . . 142 . . . . . 70 . . . 282 20 20 60 160 20 Purge Threat 1009 | . . . . . . . 111 . . . . . 300 . . . 148 . . . 300 150 Squads Dispatched 40 | . 2 . . . 6 . 9 . . . . . 2 . . 1 3 . . 2 5 10 Investigation 22 | . 1 . . . 3 . 5 . . . . . 1 . . . 2 . . 1 3 6 Extermination 7 | . . . . . 2 . . . . . . . 1 . . 1 . . . . . 3 Reinforcement 9 | . 1 . . . 1 . 3 . . . . . . . . . 1 . . 1 2 . Assault . | . . . . . . . . . . . . . . . . . . . . . . . Garrison 2 | . . . . . . . 1 . . . . . . . . . . . . . . 1 Intercept . | . . . . . . . . . . . . . . . . . . . . . . . Searches Triggered . | . . . . . . . . . . . . . . . . . . . . . . . Construction Impeded 1 | . . . . . . . 1 . . . . . . . . . . . . . . . Haulers Reinforced . | . . . . . . . . . . . . . . . . . . . . . . . Active Scanning Responses . | . . . . . . . . . . . . . . . . . . . . . . . Cargo Convoy Interrupts . | . . . . . . . . . . . . . . . . . . . . . . . Stealth | -11 -10 -10 -9 -9 -6 -6 -6 -6 -6 -6 -6 -5 -5 -5 -5 -4 -4 -4 -4 -4 -3 -2 --------- Run | Yrd Mat Sub Rec Scr Fac Was Fac Low Low Zio Dee Pro Fac Upp Upp Fac Ext Cet Arc Hub Res Res Distress Signals 21 | . 1 . . . . . 2 . . . . . 1 . . . 4 2 . 1 8 2 Communications Jammed . | . . . . . . . . . . . . . . . . . . . . . . . Distress Signals . | . . . . . . . . . . . . . . . . . . . . . . . Times Spotted 254 | . 18 12 . . 18 . 4 . 3 14 7 7 11 . . 8 35 10 4 9 30 64 Peak Tracking Total 20 | . 8 4 . . 4 . 3 . 2 13 4 4 6 . . 3 11 5 1 3 5 20 Tactical Retreats 37 | . . 2 . . 3 . 2 . 3 1 1 1 5 . . 1 5 . . . 2 11 Traps | -11 -10 -10 -9 -9 -6 -6 -6 -6 -6 -6 -6 -5 -5 -5 -5 -4 -4 -4 -4 -4 -3 -2 ------- Run | Yrd Mat Sub Rec Scr Fac Was Fac Low Low Zio Dee Pro Fac Upp Upp Fac Ext Cet Arc Hub Res Res Traps Triggered 21 | . 1 3 . . 3 . . . . . . . . . . 3 4 . . 3 2 2 Indirectly . | . . . . . . . . . . . . . . . . . . . . . . . Trap Hack Attempts . | . . . . . . . . . . . . . . . . . . . . . . . Triggered . | . . . . . . . . . . . . . . . . . . . . . . . Disarmed . | . . . . . . . . . . . . . . . . . . . . . . . Reprogrammed . | . . . . . . . . . . . . . . . . . . . . . . . Reused . | . . . . . . . . . . . . . . . . . . . . . . . Traps Extracted . | . . . . . . . . . . . . . . . . . . . . . . . Installed . | . . . . . . . . . . . . . . . . . . . . . . . Triggered . | . . . . . . . . . . . . . . . . . . . . . . . Machines | -11 -10 -10 -9 -9 -6 -6 -6 -6 -6 -6 -6 -5 -5 -5 -5 -4 -4 -4 -4 -4 -3 -2 ---------- Run | Yrd Mat Sub Rec Scr Fac Was Fac Low Low Zio Dee Pro Fac Upp Upp Fac Ext Cet Arc Hub Res Res Machines Disabled 14 | . . 1 . . 2 . . . . . 2 . 2 . . . . . 1 3 3 . Max in Single Turn 1 | . . 1 . . 1 . . . . . 1 . . . . . . . . 1 1 . Garrison Access 1 | . . . . . . . . . . . . . . . . . . . . . 1 . Network Hub 1 | . . . . . . . . . . . . . . . . . . . . 1 . . Machines Repaired . | . . . . . . . . . . . . . . . . . . . . . . . Machines Dismantled . | . . . . . . . . . . . . . . . . . . . . . . . Machines Sabotaged . | . . . . . . . . . . . . . . . . . . . . . . . Overloaded Fab Kills . | . . . . . . . . . . . . . . . . . . . . . . . Hacking | -11 -10 -10 -9 -9 -6 -6 -6 -6 -6 -6 -6 -5 -5 -5 -5 -4 -4 -4 -4 -4 -3 -2 --------- Run | Yrd Mat Sub Rec Scr Fac Was Fac Low Low Zio Dee Pro Fac Upp Upp Fac Ext Cet Arc Hub Res Res Machines Accessed 87 | . 5 1 10 3 6 . 11 . 1 . . . 4 1 . 5 14 2 . 3 11 10 Terminals 60 | . 5 . 6 . 4 . 8 . 1 . . . 3 . . 3 13 2 . 3 7 5 Fabricators 2 | . . . . . . . . . . . . . . . . 1 . . . . . 1 Repair Stations . | . . . . . . . . . . . . . . . . . . . . . . . Recycling Units 17 | . . . 4 . 2 . 3 . . . . . 1 . . . 1 . . . 3 3 Scanalyzers 1 | . . . . . . . . . . . . . . . . 1 . . . . . . Garrison Access 2 | . . . . . . . . . . . . . . . . . . . . . 1 1 Total Hacks 223 | . 13 1 20 22 16 . 27 . 1 . . . 13 1 . 9 28 3 . 6 29 34 Successful 122 | . 4 1 10 22 5 . 16 . 1 . . . 8 1 . 4 18 1 . 1 14 16 Failed 101 | . 9 . 10 . 11 . 11 . . . . . 5 . . 5 10 2 . 5 15 18 Catastrophic 23 | . 1 . 1 . 3 . 3 . . . . . 1 . . . 3 1 . 2 4 4 Database Lockouts . | . . . . . . . . . . . . . . . . . . . . . . . Manual 174 | . 15 . 21 . 16 . 27 . 1 4 . . 12 . . 6 12 1 . 6 26 27 Terminals 159 | . 13 . 15 . 9 . 23 . 1 . . . 12 . . 7 26 3 . 6 22 22 Fabricators 5 | . . . . . . . . . . . . . . . . 1 . . . . . 4 Repair Stations . | . . . . . . . . . . . . . . . . . . . . . . . Recycling Units 30 | . . . 5 . 7 . 4 . . . . . 1 . . . 2 . . . 5 6 Scanalyzers 1 | . . . . . . . . . . . . . . . . 1 . . . . . . Garrison Access 4 | . . . . . . . . . . . . . . . . . . . . . 2 2 Terminal Hacks 56 | . 1 1 2 22 . . 2 . 1 . . . 4 1 . 1 11 1 . . 4 5 Record 18 | . . . . 14 . . . . 1 . . . . . . . . 1 . . 1 1 Robot Analysis 7 | . . . . 7 . . . . . . . . . . . . . . . . . . Open Door 10 | . . . . . . . . . . . . . . 1 . 1 8 . . . . . Terminal Index 4 | . 1 . . . . . 1 . . . . . . . . . . . . . 1 1 Recycling Unit Index 2 | . . . 1 . . . . . . . . . . . . . . . . . . 1 Alert Level 3 | . . . . . . . . . . . . . 1 . . . 1 . . . . 1 Unreport Threat 8 | . . . . . . . 1 . . . . . 2 . . . 2 . . . 2 1 Locate Traps 1 | . . . 1 . . . . . . . . . . . . . . . . . . . Registered Components 1 | . . . . . . . . . . . . . 1 . . . . . . . . . Proto ID Catalog 2 | . . 1 . 1 . . . . . . . . . . . . . . . . . . Fabricator Hacks 3 | . . . . . . . . . . . . . . . . . . . . . . 3 Network Status 1 | . . . . . . . . . . . . . . . . . . . . . . 1 Load Schematic 1 | . . . . . . . . . . . . . . . . . . . . . . 1 Build 1 | . . . . . . . . . . . . . . . . . . . . . . 1 Repair Station Hacks . | . . . . . . . . . . . . . . . . . . . . . . . Recycling Unit Hacks . | . . . . . . . . . . . . . . . . . . . . . . . Scanalyzer 1 | . . . . . . . . . . . . . . . . 1 . . . . . . Insert Component 1 | . . . . . . . . . . . . . . . . 1 . . . . . . Garrison Access Hacks 1 | . . . . . . . . . . . . . . . . . . . . . 1 . Seal Access 1 | . . . . . . . . . . . . . . . . . . . . . 1 . Unauthorized Hacks 61 | . 3 . 8 . 5 . 14 . . . . . 4 . . 2 7 . . 1 9 8 Terminals 45 | . 3 . 4 . 3 . 11 . . . . . 3 . . 2 6 . . 1 6 6 Assimilate 6 | . . . . . 1 . 2 . . . . . 1 . . . . . . . 1 1 Botnet 36 | . 3 . 4 . 2 . 8 . . . . . 2 . . 2 5 . . 1 5 4 Operators 3 | . . . . . . . 1 . . . . . . . . . 1 . . . . 1 Fabricators . | . . . . . . . . . . . . . . . . . . . . . . . Repair Stations . | . . . . . . . . . . . . . . . . . . . . . . . Recycling Units 16 | . . . 4 . 2 . 3 . . . . . 1 . . . 1 . . . 3 2 Tunnel 4 | . . . 4 . . . . . . . . . . . . . . . . . . . Fedlink 10 | . . . . . 2 . 3 . . . . . . . . . . . . . 3 2 Scrapoids 2 | . . . . . . . . . . . . . 1 . . . 1 . . . . . Scanalyzers . | . . . . . . . . . . . . . . . . . . . . . . . Garrison Access . | . . . . . . . . . . . . . . . . . . . . . . . Data Cores Recovered 1 | . . . . . . . . . . . . . . . . . . . . . . 1 Used . | . . . . . . . . . . . . . . . . . . . . . . . Hacking Detections 58 | . 5 . 4 . 4 . 8 . . . . . 3 . . 3 7 3 . 3 9 9 Full Trace Events 8 | . . . . . 1 . 2 . . . . . . . . . 1 . . 1 . 3 Feedback Events 1 | . . . . . 1 . . . . . . . . . . . . . . . . . Corruption 1 | . . . . . 1 . . . . . . . . . . . . . . . . . Feedback Blocked . | . . . . . . . . . . . . . . . . . . . . . . . Robot Schematics Acquired 2 | . . . . . . . . . . 2 . . . . . . . . . . . . Robots Built . | . . . . . . . . . . . . . . . . . . . . . . . Authchips . | . . . . . . . . . . . . . . . . . . . . . . . Time . | . . . . . . . . . . . . . . . . . . . . . . . Total Robot Build Rating . | . . . . . . . . . . . . . . . . . . . . . . . Part Schematics Acquired 16 | . . . . . . . . . . 16 . . . . . . . . . . . . Parts Built 1 | . . . . . . . . . . . . . . . . . . . . . . 1 Authchips . | . . . . . . . . . . . . . . . . . . . . . . . Time 106 | . . . . . . . . . . . . . . . . . . . . . . 106 Total Part Build Rating 6 | . . . . . . . . . . . . . . . . . . . . . . 6 Parts Repaired . | . . . . . . . . . . . . . . . . . . . . . . . Time . | . . . . . . . . . . . . . . . . . . . . . . . Parts Recycled . | . . . . . . . . . . . . . . . . . . . . . . . Recycled Matter . | . . . . . . . . . . . . . . . . . . . . . . . Retrieved Matter . | . . . . . . . . . . . . . . . . . . . . . . . Retrieved Components . | . . . . . . . . . . . . . . . . . . . . . . . Parts Scanalyzed . | . . . . . . . . . . . . . . . . . . . . . . . Part Schematics Acquired . | . . . . . . . . . . . . . . . . . . . . . . . Parts Damaged . | . . . . . . . . . . . . . . . . . . . . . . . Bothacking | -11 -10 -10 -9 -9 -6 -6 -6 -6 -6 -6 -6 -5 -5 -5 -5 -4 -4 -4 -4 -4 -3 -2 ------------ Run | Yrd Mat Sub Rec Scr Fac Was Fac Low Low Zio Dee Pro Fac Upp Upp Fac Ext Cet Arc Hub Res Res Used RIF Installer . | . . . . . . . . . . . . . . . . . . . . . . . Robots Hacked . | . . . . . . . . . . . . . . . . . . . . . . . Non-combat . | . . . . . . . . . . . . . . . . . . . . . . . Combat . | . . . . . . . . . . . . . . . . . . . . . . . Robot Hacks Applied . | . . . . . . . . . . . . . . . . . . . . . . . Relay Couplers Released . | . . . . . . . . . . . . . . . . . . . . . . . Fabnet Peak Effective % . | . . . . . . . . . . . . . . . . . . . . . . . Robots Rewired 10 | . . . . . . . . . . . . . . . . . 10 . . . . . Allies Hacked 1 | . . . . . . . . . . . . . . . . . . . . . . 1 Hacks Repelled . | . . . . . . . . . . . . . . . . . . . . . . . Allies | -11 -10 -10 -9 -9 -6 -6 -6 -6 -6 -6 -6 -5 -5 -5 -5 -4 -4 -4 -4 -4 -3 -2 -------- Run | Yrd Mat Sub Rec Scr Fac Was Fac Low Low Zio Dee Pro Fac Upp Upp Fac Ext Cet Arc Hub Res Res Total Allies 59 | . . . . . . 20 1 . . . . . 6 . . . 25 5 . . 1 1 Largest Group 20 | . . . . . . 20 20 . . . . . 5 . . . 9 11 11 9 5 1 Highest-Rated Group 821 | . . . . . . 763 763 . . . . . 241 . . . 395 821 821 633 413 26 Highest-Rated Ally 159 | . . . . . . 50 50 . . . . . 50 . . . 159 159 159 96 96 26 Total Orders 27 | . . . . . . . . . . . . . . . . . . . . 3 18 6 STAY 2 | . . . . . . . . . . . . . . . . . . . . 1 1 . ROAM 1 | . . . . . . . . . . . . . . . . . . . . . 1 . FOLLOW 4 | . . . . . . . . . . . . . . . . . . . . 2 2 . EXPLORE 12 | . . . . . . . . . . . . . . . . . . . . . 8 4 RETURN 8 | . . . . . . . . . . . . . . . . . . . . . 6 2 Ally Attacks 452 | . . . . . . . 119 . . . . . 36 . . . 158 19 27 44 49 . Total Damage 12913 | . . . . . . . 2841 . . . . . 1003 . . . 3875 548 916 1928 1802 . Kills 90 | . . . . . . . 34 . . . . . 7 . . . 22 3 3 9 12 . Allies Corrupted 3 | . . . . . . . 2 . . . . . 1 . . . . . . . . . Allies Melted 2 | . . . . . . . . . . . . . . . . . . . . . 2 . Intel | -11 -10 -10 -9 -9 -6 -6 -6 -6 -6 -6 -6 -5 -5 -5 -5 -4 -4 -4 -4 -4 -3 -2 ------- Run | Yrd Mat Sub Rec Scr Fac Was Fac Low Low Zio Dee Pro Fac Upp Upp Fac Ext Cet Arc Hub Res Res Active Infowar (turns) 5837 | . 96 195 . 1071 721 144 217 337 264 27 188 126 438 347 26 439 290 . . 113 457 341 Sensors 4786 | . 96 195 . 1071 644 144 217 337 264 27 188 126 438 129 . . . . . 113 457 340 Terrain 2904 | . . . . . 277 144 217 337 228 . 188 126 438 347 26 439 137 . . . . . Traps 58 | . . . . . . . . . . . . . . . . 58 . . . . . . Cloaking 435 | . . . . . . . . . . . . . . . . 163 186 . . . . 86 Robot Analysis Total 7 | . . . . 7 . . . . . . . . . . . . . . . . . . Derelict Logs Recovered 10 | . . 1 . 2 . . . 3 2 1 . . . 1 . . . . . . . . Drone Launches 15 | . . . . . . . . . . . . . . . . . . . . . 11 4 Drone Recoveries 8 | . . . . . . . . . . . . . . . . . . . . . 5 3 Exploration | -11 -10 -10 -9 -9 -6 -6 -6 -6 -6 -6 -6 -5 -5 -5 -5 -4 -4 -4 -4 -4 -3 -2 ------------- Run | Yrd Mat Sub Rec Scr Fac Was Fac Low Low Zio Dee Pro Fac Upp Upp Fac Ext Cet Arc Hub Res Res Turns Passed 10291 | 95 410 1069 630 1499 819 144 217 337 264 298 188 126 438 347 26 442 1055 250 154 251 700 532 Spaces Moved 13072 | 54 204 593 518 1255 1210 249 559 624 658 1099 370 222 631 293 52 870 734 133 70 147 1249 1278 Core 29 | 19 . 1 . . 4 . . . . . . . . . . . 5 . . . . . Treads 879 | 35 204 554 . . . . . . . . . . . . . . 86 . . . . . Legs 202 | . . . . . . . . . . . . . . . . . 202 . . . . . Wheels 1028 | . . . . . . . . . . . . . 17 131 10 5 214 133 70 147 301 . Hover 228 | . . . . . . . . . . . . . . . . . 119 . . . . 109 Flight 10706 | . . 38 518 1255 1206 249 559 624 658 1099 370 222 614 162 42 865 108 . . . 948 1169 Fastest Speed 16 | 50 160 117 117 117 24 24 18 24 20 21 28 30 30 33 37 34 34 80 80 70 22 16 Average Speed 58 | 156 160 162 117 117 51 24 23 24 24 25 28 30 63 73 49 36 93 80 80 76 35 24 Slowest Speed 350 | 250 160 350 117 117 300 24 24 25 25 32 30 30 115 115 100 115 240 80 80 80 88 117 Overloaded Moves 436 | . . . . . . . . . . 90 . 40 209 . . . . . . . . 97 Propulsion Burnouts . | . . . . . . . . . . . . . . . . . . . . . . . Robots Hopped 41 | . . . . . 6 . . . . . . . . . . 12 1 . . . 8 14 Potential Cave-ins 18 | . . 6 . . . . . . . . . 3 . 9 . . . . . . . . Cave-ins Triggered 3 | . . . . . . . . . . . . 1 . 2 . . . . . . . . Exploration Rate (%) 50 | 5 44 39 94 86 28 95 19 77 83 89 63 37 18 48 8 24 72 65 75 22 45 35 Regions Visited 22 Branch Regions 14 Pre-discovered Areas 11 | . . . 4 3 1 . . 1 1 1 . . . . . . . . . . . . Known Exits Taken 12 | . . . . 1 . . 1 1 1 1 1 1 1 1 . 1 . . . 1 1 . Unknown Exits Taken 8 | 1 1 1 1 . . . . . . . . . . . 1 . 1 1 1 . . . Scrap Searched 27 | . . 5 . 8 . . . 3 3 4 . 3 . 1 . . . . . . . . Spaces Dug 109 | . . 30 . . 5 . 8 7 6 . 1 10 4 13 . 8 5 . . . 6 6 Terrain Destroyed 344 | . . 66 . . 12 . 8 7 6 . 23 10 4 13 . 8 10 139 . 8 11 19 Melee 69 | . . 2 . . 5 . 8 7 6 . 1 6 4 8 . 6 5 . . . 5 6 Projectile 39 | . . 8 . . . . . . . . . 4 . 5 . 2 5 . . 8 6 1 AOE 235 | . . 56 . . 7 . . . . . 22 . . . . . . 139 . . . 11 Terrain Rammed 1 | . . . . . . . . . . . . . . . . . . . . . . 1 Walls Destroyed 1 | . . . . . . . . . . . . . . . . . . . . . . 1 Machines Disabled . | . . . . . . . . . . . . . . . . . . . . . . . Actions | -11 -10 -10 -9 -9 -6 -6 -6 -6 -6 -6 -6 -5 -5 -5 -5 -4 -4 -4 -4 -4 -3 -2 --------- Run | Yrd Mat Sub Rec Scr Fac Was Fac Low Low Zio Dee Pro Fac Upp Upp Fac Ext Cet Arc Hub Res Res Total 15122 | 61 237 648 541 1292 1371 332 631 800 753 1115 446 259 652 410 51 966 1015 257 153 256 1425 1451 Wait 1214 | . . . 18 14 86 78 56 164 90 4 73 16 4 88 . 47 86 107 72 73 29 109 Move 12976 | 53 203 592 517 1254 1198 248 558 623 657 1098 369 221 630 292 51 848 731 132 69 146 1234 1252 Hop 34 | . . . . . 6 . . . . . . . . . . 9 1 . . . 6 12 Pick Up 99 | 1 6 8 3 11 12 2 2 3 . 3 . 1 1 2 . 4 10 1 2 4 17 6 Fast Attach 113 | 6 2 1 1 1 8 1 3 . . . . 1 4 . . 12 39 . . 4 15 15 Attach 63 | . . 5 . . 8 1 1 . . 2 1 1 2 5 . 3 6 1 1 3 13 10 Detach 24 | . . . . . 1 . . . . . . 1 1 6 . 3 1 2 . 1 4 4 Swap 30 | 1 . 3 1 . 7 . . 1 . . . 4 2 . . 1 . 1 . 3 5 1 Drop 95 | . 1 6 1 12 7 2 3 2 . 3 . . 1 3 . 6 10 . . 4 23 11 Fire 189 | . 25 31 . . 14 . . . . . 1 6 1 6 . 2 21 13 9 18 33 9 Melee 104 | . . 2 . . 6 . 8 7 6 5 2 8 6 8 . 6 24 . . . 7 9 Ram 2 | . . . . . . . . . . . . . . . . . . . . . . 2 Kick . | . . . . . . . . . . . . . . . . . . . . . . . Crush . | . . . . . . . . . . . . . . . . . . . . . . . Escape Stasis 97 | . . . . . 18 . . . . . . . . . . 18 14 . . . 36 11 Rewire 80 | . . . . . . . . . . . . . . . . 7 72 . . . 1 . Trap . | . . . . . . . . . . . . . . . . . . . . . . . Miscellaneous 2 | . . . . . . . . . . . . . . . . . . . . . 2 . Route ------- -11/Scrapyard -10/Materials -10/Subcaves (discovered 3 exits: [*Mat x2] / *Rec) -9/Recycling (discovered 2 exits: [*Fac] / *Scr) -9/Scraptown (discovered 2 exits: *Fac x2) -6/Factory (discovered 5 exits: *Fac x3 / Low x2) -6/Waste -6/Factory (discovered 2 exits: *Low x2) -6/Lower Caves -6/Lower Caves (discovered 2 exits: *Fac / *Zio) -6/Zion (discovered 2 exits: *Dee / [*Pro]) -6/Deep Caves -5/Proximity Caves -5/Factory -5/Upper Caves -5/Upper Caves (discovered 2 exits: *Fac / Zhi) -4/Factory (discovered 4 exits: Res x2 / *Upp / *Ext) -4/Extension (discovered 2 exits: *Res / *Cet) -4/Cetus -4/Archives (discovered 2 exits: *Hub x2) -4/Hub_04(d) -3/Research (discovered 2 exits: *Res / *Tes) -2/Research (discovered 2 exits: *Acc x2) History --------- Turn | Location | Event 15 | -11/Scrapyard | Discovered new exit (range 16) 96 | -11/Scrapyard | Entered Materials 306 | -10/Materials | Build established: Mutant 493 | -10/Materials | Discovered new exit (range 9) 506 | -10/Materials | Entered Subcaves 514 | -10/Subcaves | Discovered new exit (range 9) 640 | -10/Subcaves | Discovered new exit (range 5) 971 | -10/Subcaves | Ambushed by Subdweller buried in earth 994 | -10/Subcaves | Ambushed by Subdweller buried in earth 1004 | -10/Subcaves | Ambushed by Subdweller buried in earth 1007 | -10/Subcaves | Ambushed by Subdweller buried in earth 1007 | -10/Subcaves | Ambushed by Subdweller buried in earth 1017 | -10/Subcaves | Core integrity fell below 50% 1053 | -10/Subcaves | Lost 3 parts (1n2w) 1065 | -10/Subcaves | Visited 4L-MR0's lab 1084 | -10/Subcaves | Found Meta Core 1265 | -10/Subcaves | Learned location of 1 exit from Materials 1276 | -10/Subcaves | A swath of the cavern ceiling suddenly collapsed 1572 | -10/Subcaves | Discovered new exit (range 2) 1575 | -10/Subcaves | Entered Recycling 1576 | -9/Recycling | Met a Zionite searching for Scraptown 1873 | -9/Recycling | Discovered new exit (range 16) 2177 | -9/Recycling | Scanned before Scraplab entrance 2193 | -9/Recycling | Entered Scraplab 2203 | -9/Recycling | Discovered new exit (range 2) 2205 | -9/Recycling | Entered Scraptown 2478 | -9/Scraptown | Discovered new exit (range 11) 2534 | -9/Scraptown | Scanned Subdweller tech in exchange for log data 2537 | -9/Scraptown | Learned location of 1 exit from Research 2538 | -9/Scraptown | Learned Research security intel 2576 | -9/Scraptown | Visited Bundlers 2665 | -9/Scraptown | Visited Comm Corps 2724 | -9/Scraptown | Visited Cyclists 2797 | -9/Scraptown | Visited TADAMA 2916 | -9/Scraptown | Visited UFD Registry 2916 | -9/Scraptown | Registered with UFD as "Protodriver" 2932 | -9/Scraptown | Visited The Evicted 2939 | -9/Scraptown | Visited Cave Peace 2946 | -9/Scraptown | Visited Spacefarers 3056 | -9/Scraptown | Visited Analyses Database 3082 | -9/Scraptown | Visited Science Guys 3126 | -9/Scraptown | Visited Scrapoid Research Area 3159 | -9/Scraptown | Visited Infowarlord's Domain 3168 | -9/Scraptown | Found Exp. Signal Interpreter 3189 | -9/Scraptown | Visited Research Penetration Think Tank 3224 | -9/Scraptown | Visited Chapter 10 3251 | -9/Scraptown | Visited Junk Repository 3282 | -9/Scraptown | Visited Curators Association 3317 | -9/Scraptown | Visited Cartography Club 3336 | -9/Scraptown | Found Surveybot 17 Chip 3374 | -9/Scraptown | Learned location of Lower Caves (-6) 3374 | -9/Scraptown | Learned location of Archives (-4) 3374 | -9/Scraptown | Learned 16 Factory zone layouts 3374 | -9/Scraptown | Learned 4 Recycling zone layouts 3374 | -9/Scraptown | Learned 16 Upper Caves zone layouts 3374 | -9/Scraptown | Learned 24 Proximity Caves zone layouts 3374 | -9/Scraptown | Learned 4 Armory zone layouts 3374 | -9/Scraptown | Learned location of 2 exits from Factory 3374 | -9/Scraptown | Learned location of 1 exit from Lower Caves 3374 | -9/Scraptown | Learned location of 3 exits from Upper Caves 3374 | -9/Scraptown | Identified exit to Factory 3641 | -9/Scraptown | Met Optimus 3641 | -9/Scraptown | Accepted into 0bPrime 3704 | -9/Scraptown | Entered Factory 3704 | -6/Factory | Evolved 8 slots: Propulsion x4, Utility x4 3705 | -6/Factory | Identified exit to Factory 3706 | -6/Factory | Identified exit to Lower Caves 4004 | -6/Factory | Build established: Derelict-Mutant 4108 | -6/Factory | Lost 4 parts (2n2u) 4211 | -6/Factory | Discovered exit to Factory (range 15) 4330 | -6/Factory | Attached Meta Core, gained temporary slots: Propulsion, Utility, Weapon 4342 | -6/Factory | Loaded intel: 8 recycling unit locations 4457 | -6/Factory | Learned location of Protoforge (-2) 4523 | -6/Factory | Sucked down chute 4523 | -6/Factory | Entered Waste 4524 | -6/Waste | Joined by Warlord forces that had cleared the area 4584 | -6/Waste | Discovered new exit (range 15) 4588 | -6/Waste | Identified exit to Factory 4667 | -6/Waste | Entered Factory 4667 | -6/Factory | Accompanied by 20 allies 4712 | -6/Factory | Build established: Scavenger-Scout 4735 | -6/Factory | Loaded intel: 8 recycling unit locations 4811 | -6/Factory | Lost 4 allies 4813 | -6/Factory | Discovered exit to Lower Caves (range 14) 4838 | -6/Factory | Discovered exit to Lower Caves (range 11) 4845 | -6/Factory | Garrison activated, responded to threat 4884 | -6/Factory | Entered Lower Caves 4885 | -6/Lower Caves | Identified exit to Lower Caves 4892 | -6/Lower Caves | Found Alien Artifact 4970 | -6/Lower Caves | Spotted B-75 Beast 5202 | -6/Lower Caves | Learned location of Extension (-4) 5221 | -6/Lower Caves | Entered another Lower Caves area 5230 | -6/Lower Caves | Discovered exit to Factory (range 3) 5360 | -6/Lower Caves | Learned location of Zion (-6) 5381 | -6/Lower Caves | Learned Factory garrison access intel 5482 | -6/Lower Caves | Discovered new exit (range 19) 5485 | -6/Lower Caves | Identified exit to Zion 5485 | -6/Lower Caves | Entered Zion 5495 | -6/Zion | Discovered new exit (range 14) 5516 | -6/Zion | System corruption cleaned by Quarantine Array 5522 | -6/Zion | Learned Factory repair station intel 5556 | -6/Zion | Turned away by Imprinter 5571 | -6/Zion | Identified exit to Deep Caves 5618 | -6/Zion | Given A8's code to call for help 5746 | -6/Zion | Attacked by Zionites 5757 | -6/Zion | Destroyed Imprinter 5760 | -6/Zion | Extracted access codes from Imprinter's data core 5779 | -6/Zion | Opened final containment barrier to the Deep Caves 5783 | -6/Zion | Saw the warning signs outside the Deep Caves entrance 5783 | -6/Zion | Entered Deep Caves 5785 | -6/Deep Caves | Lost 5 parts (3n1u1w) 5854 | -6/Deep Caves | Z-Facility disabled 5870 | -6/Deep Caves | Core integrity fell below 50% 5966 | -6/Deep Caves | Discovered new exit (range 17) 5971 | -6/Deep Caves | Identified exit to Proximity Caves 5971 | -6/Deep Caves | Entered Proximity Caves 5973 | -5/Proximity Caves | Spotter reported a threat 5974 | -5/Proximity Caves | Spotter reported a threat 6018 | -5/Proximity Caves | Attracted the attention of an 0b10 checkpoint 6026 | -5/Proximity Caves | Spotter reported a threat 6027 | -5/Proximity Caves | Spotter reported a threat 6044 | -5/Proximity Caves | Build established: Scout 6084 | -5/Proximity Caves | Crushed by falling debris 6085 | -5/Proximity Caves | Spotted B-75 Beast 6097 | -5/Proximity Caves | Entered Factory 6097 | -5/Factory | Evolved 2 slots: Propulsion x1, Utility x1 6098 | -5/Factory | Loaded intel: 6 repair station locations 6099 | -5/Factory | Loaded intel: 4 garrison access locations 6433 | -5/Factory | Scrapoids reinforcements arrived? 6499 | -5/Factory | Discovered new exit (range 6) 6500 | -5/Factory | Identified exit to Upper Caves 6512 | -5/Factory | Lost 5 allies 6535 | -5/Factory | Entered Upper Caves 6536 | -5/Upper Caves | Identified exit to Upper Caves 6664 | -5/Upper Caves | Crushed by falling debris 6695 | -5/Upper Caves | Lost 4 parts (2n2u) 6708 | -5/Upper Caves | Entered a destroyed Warlord outpost 6740 | -5/Upper Caves | Learned 8 Factory zone layouts 6785 | -5/Upper Caves | Crushed by falling debris 6785 | -5/Upper Caves | System corruption reached 10% 6882 | -5/Upper Caves | Entered another Upper Caves area 6882 | -5/Upper Caves | Discovered new exit (range 15) 6883 | -5/Upper Caves | Identified exit to Zhirov 6908 | -5/Upper Caves | Entered Factory 6908 | -4/Factory | Evolved 2 slots: Power x1, Utility x1 6909 | -4/Factory | Identified exit to Research 6909 | -4/Factory | Identified exit to Extension 6910 | -4/Factory | Identified exit to Upper Caves 6911 | -4/Factory | Identified Core Expander 6911 | -4/Factory | Installed Core Expander, added new Weapon slot 6958 | -4/Factory | Spotted B-86 Titan 6979 | -4/Factory | Build established: Mutant 7350 | -4/Factory | Entered Extension 7399 | -4/Extension | Rescued a captive Derelict 7399 | -4/Extension | Rescued a captive Derelict 7459 | -4/Extension | Rescued a captive Derelict 7461 | -4/Extension | Rescued a captive Derelict 7471 | -4/Extension | Rescued a captive Derelict 7493 | -4/Extension | Rescued a captive Derelict 7494 | -4/Extension | Rescued a captive Derelict 7544 | -4/Extension | Lost 8 parts (6n2u) 7794 | -4/Extension | Rescued a captive Derelict 7796 | -4/Extension | Rescued a captive Derelict 7848 | -4/Extension | Lost 3 allies 7913 | -4/Extension | Lost 3 allies 7949 | -4/Extension | Spotted B-86 Titan 7955 | -4/Extension | Spotted B-86 Titan 8005 | -4/Extension | Core integrity fell below 50% 8040 | -4/Extension | Lost 14 parts (1p5n5u3w) 8048 | -4/Extension | Scrapoids reinforcements arrived? 8086 | -4/Extension | Core integrity fell below 20% 8115 | -4/Extension | Lost 6 parts (1p1n2u2w) 8136 | -4/Extension | Lost 3 allies 8136 | -4/Extension | Found Scrap Suit 8247 | -4/Extension | Rescued A7 8285 | -4/Extension | Rescued a captive Derelict 8287 | -4/Extension | Rescued a captive Derelict 8316 | -4/Extension | Discovered exit to Research (range 10) 8317 | -4/Extension | Discovered new exit (range 6) 8405 | -4/Extension | Entered Cetus 8405 | -4/Cetus | Accompanied by 7 allies (A7) 8410 | -4/Cetus | Acquired a Cetus Manufacturing Module code from A7 8419 | -4/Cetus | Spotted Cetus Guard 8419 | -4/Cetus | Spotted Cetus Guard 8420 | -4/Cetus | Spotted Cetus Guard 8421 | -4/Cetus | Spotted Cetus Guard 8427 | -4/Cetus | Destroyed Cetus Guard 8430 | -4/Cetus | Destroyed Cetus Guard 8430 | -4/Cetus | Destroyed Cetus Guard 8430 | -4/Cetus | Allies destroyed Cetus Guard 8436 | -4/Cetus | Build established: Scavenger-Scrapper 8475 | -4/Cetus | Started Cetus Manufacturing Module 8488 | -4/Cetus | Discovered new exit (range 15) 8500 | -4/Cetus | Manufactured an Enhanced Grunt 8504 | -4/Cetus | Spotted Cetus Guard 8504 | -4/Cetus | Spotted Cetus Guard 8507 | -4/Cetus | Spotted Cetus Guard 8515 | -4/Cetus | Allies destroyed Cetus Guard 8518 | -4/Cetus | Destroyed Cetus Guard 8519 | -4/Cetus | Spotted Cetus Guard 8524 | -4/Cetus | Allies destroyed Cetus Guard 8525 | -4/Cetus | Manufactured an Enhanced Grunt 8527 | -4/Cetus | Destroyed Cetus Guard 8550 | -4/Cetus | Manufactured an Enhanced Grunt 8575 | -4/Cetus | Manufactured an Enhanced Grunt 8600 | -4/Cetus | Manufactured an Enhanced Grunt 8655 | -4/Cetus | Entered Archives 8655 | -4/Archives | Accompanied by 11 allies (A7) 8707 | -4/Archives | Discovered new exit (range 15) 8726 | -4/Archives | Discovered new exit (range 16) 8809 | -4/Archives | Entered Hub_04(d) 8809 | -4/Hub_04(d) | Accompanied by 9 allies 8979 | -4/Hub_04(d) | Discovered exit to Research (range 5) 8986 | -4/Hub_04(d) | Network Hub disabled 9060 | -4/Hub_04(d) | Entered Research 9060 | -3/Research | Accompanied by 5 allies 9060 | -3/Research | Evolved 2 slots: Utility x2 9061 | -3/Research | Identified exit to Testing 9168 | -3/Research | Lost 3 parts (1p2u) 9260 | -3/Research | Revision forces began assault on 0b10 9447 | -3/Research | Met up with Revision 17++ 9457 | -3/Research | Spotted B-86 Titan 9564 | -3/Research | Loaded intel: 5 recycling unit locations 9607 | -3/Research | Discovered new exit (range 31) 9703 | -3/Research | Identified exit to Research 9725 | -3/Research | Build established: Scavenger-Sprinter 9760 | -3/Research | Research terminal network offline 9760 | -3/Research | Entered another Research area 9760 | -2/Research | Evolved 2 slots: Propulsion x2 9761 | -2/Research | Identified exit to Access 9838 | -2/Research | Loaded intel: 5 recycling unit locations 9964 | -2/Research | Lost 4 parts (3n1u) 10070 | -2/Research | System corruption reached 10% 10074 | -2/Research | Fabricated Adv. Hacking Suite? 10163 | -2/Research | Spotted B-90 Cyclops 10169 | -2/Research | Spotted B-90 Cyclops 10210 | -2/Research | Lost 15 parts (2p7n6u) 10281 | -2/Research | Core integrity fell below 50% 10285 | -2/Research | Garrison activated, responded to threat 10289 | -2/Research | Core integrity fell below 20% 10292 | -2/Research | Destroyed by S-43 Plague with Heavy Machine Gun Last Messages --------------- 10285_ ALERT: Activating Garrison Access R001. 10285_ Destroyed Xenon Bombardment Thruster. 10285_ S-43 Plague destroyed. 10286_ G-73 Enforcer emerges from the garrison. 10286_ Micro-nuke Launcher destroyed. 10286_ Penetrated by Slug. 10286_ P-80 Master resets P-80 Master, system corruption cleaned. 10287_ P-80 Master resets H-88 Terminator, system corruption cleaned. 10288_ PY4OSAX>%K/5ZESANDSUNCY1|S=CXPC 10288_ Penetrated by Slug. 10290_ Triggered Alarm Trap. 10290_ An alarm sounds. 10290_ ALERT: Alarm triggered, dispatching investigation squad. 10291_ U-05 Engineer lays Concrete. 10291_ Penetrated by Slug. 10291_ P-80 Master resets P-80 Master, system corruption cleaned. Map ----- +----------------------------------------------------+ | | | ?????????????????????????????????????????????????? | | ?????????????????????????????????????????????????? | | ?????????????????????????????????????????????????? | | ?????????????????????????????????????????????????? | | ?????????????????????????????????????????????????? | | ?????????????????????????????????????????????????? | | ?????????????????????????????????????????????????? | | ?????????????????????????????????????????????????? | | ?????????????????????????????????????????????????? | | ?????????????????????????????????????????????????? | | ?????????###+##?#########????????????????????????? | | ?????????# +?? ?????????????????????????? | | ?????????# #?? ?????????????? ???????? | | ??????#### #??? ??????????????? ??????? | | ####??# #??? ??????????????+ ??????? | | #??# #???? ???????????????# #??????? | | #### #???? ???????????????# #??????? | | / ######+########????????# #??????? | | " ! #????????+ +??????? | | # #????????# #??????? | | / / #????????# #??????? | | ########## " #????????# #??????? | | ?????????# "" """" #????????# #??????? | | ?????????# Gggg """"" #????????# #??????? | | ?????????# ""gg " " @ ########## #??????? | | ?????????# " s R #????### | | ?????????# p #????# | | ?????????# s ###### " | | ?????????# p p u u t T | | ?????????######## p h ############+######## | | ????????????????# pp ]#### ## | | ?????????######## ps " " ### | | ?????????# h p #### #?# | | ?????????# %= #??# #?# | | ?????????# #??# #?# | | ?????????# ! #??# #?# | | ?????????# ######## #??# ! #?# | | ?????????# ???????# #??# !! #?# | | ?????????# ????????# ! #??# ! #?# | | ???????? ?????????##########??# #?# | | ??????? ??????????????????????# ### | | ??????? ???????????????????????# ## | | ??????? ????????????????????????############### | | ?????????????????????????????????????# # | | ?????????????????????????????????????# # | | ?????????????????????????????????????# ! # | | ?????????????????????????????????????# # | | ?????????????????????????????????????#########+# | | ?????????????????????????????????????????????# # | +----------------------------------------------------+ Best States ------------- Heat Dissipation 103 Energy Generation 39 Energy Capacity 565 Matter Stores 300 Matter Capacity 300 Sight Range 16 Robot Scan Range 16 Terrain Scan Range 24 Terrain Scan Density 1210 Cloak Strength 3 Power Amplification 30 Additional Mass Support 9 Armor Coverage 825 Power Shielding 66 Phase Shifting 10 Evasion (%) 66 Targeting Accuracy 6 Melee Accuracy 10 Recoil Reduction 2 Offensive Hacking 10 Item Schematics ----------------- Imp. Dynamic Insulation System | -6/Zion | Archive EM Shield | -6/Zion | Archive Magnetic Acceleration Cannon | -6/Zion | Archive Adv. Hacking Suite | -6/Zion | Archive Hardcell Cannon | -6/Zion | Archive Thermic Laser | -6/Zion | Archive Imp. Plasma Cutter | -6/Zion | Archive Adv. Melee Analysis Suite | -6/Zion | Archive Adv. Cooling System | -6/Zion | Archive Fission Core | -6/Zion | Archive Hyp. Gauss Cannon | -6/Zion | Archive Cloaking Device | -6/Zion | Archive Mass Driver | -6/Zion | Archive Phase Cannon | -6/Zion | Archive Adv. Transmission Jammer | -6/Zion | Archive Imp. KE Penetrator | -6/Zion | Archive Robot Schematics ------------------ K-01 Serf | -6/Zion | Archive T-07 Excavator | -6/Zion | Archive Fabricated ------------ Adv. Hacking Suite | x1 | -2/Research Repaired ---------- Nothing Alien Tech Used ----------------- Core Expander Achievements -------------- Revolutionary Research Challenges ------------ None Game ------ Seed BottomlessWeaponsFlakker Manual? 0 Play Time 06:11:23 Cumulative 215.8 hours Start 2025.05.23 @ 22:32:13 End 2025.05.24 @ 19:59:24 Sessions 9 Manual Loads 0 Difficulty Rogue Special Mode None Game No. 204 Rogue 204 Adventurer 0 Explorer 0 Win Type - Total 1 Types 1/0/0/0/0/0/0/0/0/0 Lore% 72 Gallery% 59 Achievement% 49 Wizard Run 0 Options --------- Layout 1 ASCII 0 Keyboard 0 Movement Mouse Keybinds 0 Fullscreen 1 Font 24/Smallcaps Map View 50x35 Zoom Use 0% Tactical HUD 1 Map Filters NONE Filters NONE Steam 1 RUN: 1cafa5bd-99ff-46c6-8c1b-88d20d614754